bitfinex-derivatives/quotes_BTCF0:USTF0_20251119
["timestamp","ask_amount","ask_price","bid_price","bid_amount"]
[1763574095343,0.00427448,89246.0,89245.0,0.02253635]
[1763574095545,0.00427448,89246.0,89245.0,0.04413635]
[1763574095750,0.00228013,89246.0,89245.0,0.04413635]
[1763574096454,0.00228013,89246.0,89245.0,0.15385635]
[1763574096658,0.1121021,89279.0,89261.0,0.1121232]
[1763574096952,0.08851435,89266.0,89262.0,0.11065635]
[1763574097252,0.04475435,89266.0,89263.0,0.3608]
[1763574097448,0.04475435,89266.0,89265.0,0.00093635]
[1763574097638,0.00199435,89266.0,89265.0,0.00093635]
[1763574097947,0.00016719,89274.0,89270.0,0.1121125]
[1763574098155,0.00216154,89274.0,89273.0,0.00093635]
[1763574098451,0.00216154,89274.0,89273.0,0.36173635]
[1763574098850,0.00216154,89274.0,89273.0,0.40037635]
[1763574099042,0.00016719,89274.0,89273.0,0.40037635]
[1763574099239,0.00016719,89274.0,89273.0,0.36173635]
[1763574099845,0.08968154,89274.0,89273.0,0.00093635]
[1763574100142,0.45048154,89274.0,89273.0,0.00093635]
[1763574100743,0.45048154,89274.0,89259.0,0.10972]
[1763574100744,0.08652,89264.0,89259.0,0.10972]
[1763574100944,0.00199435,89260.0,89259.0,0.10972]
[1763574101142,0.00116719,89274.0,89267.0,0.1121161]
[1763574101353,0.04276,89271.0,89270.0,0.1121118]
[1763574101550,0.04475435,89271.0,89270.0,0.11304815]
[1763574101746,0.00199435,89271.0,89270.0,0.11304815]
[1763574102545,0.00299435,89271.0,89270.0,0.11304815]
[1763574102749,0.00299435,89271.0,89270.0,0.22272815]
[1763574102947,0.08951435,89271.0,89270.0,0.11061635]
[1763574103152,0.08951435,89271.0,89270.0,0.00093635]
[1763574103857,0.08652,89258.0,89256.0,0.1121301]
[1763574104152,0.00219803,89258.0,89257.0,0.44591807]
[1763574104358,0.001,89271.0,89269.0,0.1121139]
[1763574104554,0.08652,89239.0,89238.0,9.916e-05]
[1763574104754,0.08652,89233.0,89223.0,0.3608]
[1763574104956,0.02639,89244.0,89223.0,0.3608]
[1763574104957,0.08871803,89224.0,89223.0,0.3608]
[1763574105149,0.00219803,89224.0,89223.0,0.3608]
[1763574105351,0.3608,89236.0,89223.0,0.3608]
[1763574105557,0.02639,89244.0,89225.0,0.26647941]
[1763574105558,0.154928,89226.0,89225.0,0.26647941]
[1763574105751,0.1121738,89222.0,89217.0,0.00016807]
[1763574105947,9.832e-05,89226.0,89223.0,0.1131713]
[1763574106152,9.832e-05,89226.0,89225.0,0.08495]
[1763574106349,9.832e-05,89226.0,89223.0,0.1131713]
[1763574106350,0.00229635,89226.0,89223.0,0.1131713]
[1763574106554,0.08652,89224.0,89223.0,0.001]
[1763574106757,0.00219803,89224.0,89223.0,0.001]
[1763574107453,0.00119803,89224.0,89223.0,0.001]
[1763574107651,9.832e-05,89226.0,89225.0,0.08495]
[1763574107848,0.00202902,89226.0,89225.0,0.08595]
[1763574108361,0.00016807,89234.0,89233.0,0.1971092]
[1763574108560,0.04485877,89234.0,89233.0,0.3618]
[1763574108760,0.08861877,89234.0,89233.0,0.001]
[1763574109156,0.08652,89226.0,89225.0,0.10976]
[1763574109361,0.0884507,89226.0,89225.0,0.11076]
[1763574109565,0.0019307,89226.0,89225.0,0.11076]
[1763574109959,0.0884507,89226.0,89225.0,0.11076]
[1763574110266,0.0884507,89226.0,89225.0,0.001]
[1763574110459,0.2006186,89226.0,89225.0,0.001]
[1763574110664,0.112178,89218.0,89215.0,0.1121816]
[1763574110864,0.00219803,89218.0,89215.0,0.1121816]
[1763574111158,0.00219803,89218.0,89217.0,0.04054807]
[1763574111358,0.00219803,89218.0,89217.0,0.44591807]
[1763574111757,0.00016807,89234.0,89232.0,0.1121605]
[1763574111959,0.0023661,89234.0,89226.0,0.3608]
[1763574112153,0.0023661,89234.0,89232.0,0.1121593]
[1763574112353,0.00016807,89234.0,89233.0,0.08495]
[1763574112763,0.0451261,89234.0,89232.0,0.1121593]
[1763574112957,0.0451261,89234.0,89227.0,0.10972]
[1763574112958,0.0023661,89234.0,89230.0,0.1121621]
[1763574113160,0.0023661,89234.0,89227.0,0.10972]
[1763574113557,0.0023661,89234.0,89231.0,0.1121617]
[1763574113752,0.0023661,89234.0,89227.0,0.10972]
[1763574114064,0.08652,89228.0,89227.0,0.10972]
[1763574114262,0.08871803,89228.0,89227.0,0.10972]
[1763574114860,0.04495803,89228.0,89226.0,0.472968]
[1763574115054,0.00016807,89234.0,89233.0,0.2226793]
[1763574115754,0.0023661,89234.0,89233.0,0.1121593]
[1763574116264,0.0023661,89234.0,89230.0,0.3608]
[1763574116468,0.08652,89231.0,89230.0,0.3608]
[1763574116669,0.08871803,89231.0,89230.0,0.472963]
[1763574117361,0.04495803,89231.0,89230.0,0.472963]
[1763574117567,0.00116807,89234.0,89233.0,0.2226793]
[1763574117967,0.00016807,89234.0,89233.0,0.2226793]
[1763574118367,0.3608,89247.0,89233.0,0.2226793]
[1763574118368,0.3608,89247.0,89246.0,0.1121429]
[1763574118673,0.36299803,89247.0,89246.0,0.1121429]
[1763574118964,0.3608,89257.0,89254.0,0.1121326]
[1763574119162,0.00219803,89256.0,89255.0,0.04038]
[1763574119360,0.00219803,89256.0,89255.0,0.08495]
[1763574119755,0.00016719,89264.0,89263.0,0.1970716]
[1763574119957,0.00236522,89264.0,89263.0,0.08495]
[1763574120156,0.00236522,89264.0,89259.0,0.3608]
[1763574120461,0.36316522,89264.0,89253.0,0.3608]
[1763574120660,0.04276,89262.0,89258.0,0.1121277]
[1763574120872,0.00219803,89261.0,89260.0,0.1121244]
[1763574121065,0.00016719,89264.0,89263.0,0.1970716]
[1763574121768,0.3608,89283.0,89276.0,0.1121043]
[1763574121969,0.00219803,89282.0,89281.0,0.0843]
[1763574122365,0.00219803,89282.0,89281.0,0.4451]
[1763574122759,0.08213,89286.0,89285.0,0.112094]
[1763574122964,0.112094,89285.0,89281.0,0.3608]
[1763574123166,0.1121028,89278.0,89277.0,0.00016807]
[1763574123368,0.00219803,89278.0,89277.0,0.00016807]
[1763574123859,0.08404803,89278.0,89277.0,0.00016807]
[1763574124476,0.44484803,89278.0,89277.0,0.00016807]
[1763574124959,0.44684803,89278.0,89277.0,0.00016807]
[1763574125476,0.44684803,89278.0,89277.0,0.11227207]
[1763574125670,0.44684803,89278.0,89277.0,0.00016807]
[1763574125968,0.03817,89263.0,89262.0,0.4729229]
[1763574126173,0.03817,89263.0,89262.0,0.5572229]
[1763574126174,0.00219803,89263.0,89262.0,0.5572229]
[1763574126366,0.00219803,89263.0,89262.0,0.4729229]
[1763574126559,0.04036803,89263.0,89262.0,0.4729229]
[1763574126975,0.00016807,89271.0,89270.0,0.1964128]
[1763574127167,0.0023661,89271.0,89270.0,0.1964128]
[1763574127362,0.0023661,89271.0,89270.0,0.5572128]
[1763574127567,0.00016807,89271.0,89270.0,0.5572128]
[1763574127962,0.3608,89295.0,89285.0,0.152134]
[1763574128169,0.3608,89310.0,89285.0,0.917994]
[1763574128468,0.1120799,89297.0,89285.0,0.917994]
[1763574128666,0.1120851,89293.0,89285.0,0.8059]
[1763574128863,0.3608,89300.0,89285.0,0.8059]
[1763574129064,0.3608,89310.0,89309.0,0.0843]
[1763574129380,0.00027988,89326.0,89312.0,0.0257]
[1763574129568,0.00219803,89325.0,89312.0,0.0257]
[1763574130073,0.00219803,89325.0,89311.0,0.3608]
[1763574130074,0.00219803,89325.0,89316.0,0.04004]
[1763574130283,0.00219803,89325.0,89311.0,0.4728603]
[1763574130284,0.00219803,89325.0,89321.0,0.1120486]
[1763574130466,0.00219803,89325.0,89324.0,0.0843]
[1763574130770,0.3608,89346.0,89335.0,0.0257]
[1763574130973,0.00219803,89346.0,89345.0,0.0843]
[1763574131160,0.3608,89355.0,89346.0,0.1120175]
[1763574131366,0.3608,89355.0,89335.0,0.0257]
[1763574131367,0.3608,89379.0,89352.0,0.02345]
[1763574131570,0.00219803,89365.0,89360.0,0.3608]
[1763574132276,0.3608,89386.0,89365.0,0.1962936]
[1763574132468,0.10964,89402.0,89365.0,0.1962936]
[1763574132780,0.00219803,89394.0,89376.0,0.21193076]
[1763574133471,0.08185,89384.0,89383.0,0.3608]
[1763574133678,0.08404803,89384.0,89377.0,0.3608]
[1763574134270,0.03817,89378.0,89377.0,0.3608]
[1763574134575,0.08185,89376.0,89375.0,0.00016785]
[1763574134781,0.08404803,89376.0,89375.0,0.00016785]
[1763574136072,0.00219803,89376.0,89375.0,0.08446785]
[1763574136375,0.00219803,89376.0,89375.0,0.00016785]
[1763574136682,0.04036803,89376.0,89375.0,0.00016785]
[1763574136875,0.08404803,89376.0,89375.0,0.00016785]
[1763574137181,0.002,89376.0,89375.0,0.08446785]
[1763574137480,0.3608,89404.0,89381.0,0.1119733]
[1763574137679,0.00219803,89402.0,89390.0,0.21193076]
[1763574138068,0.00219803,89402.0,89384.0,0.4727691]
[1763574138271,0.00219803,89402.0,89394.0,0.1119567]
[1763574138471,0.00219803,89402.0,89393.0,0.1119586]
[1763574138772,0.00219803,89402.0,89392.0,0.3608]
[1763574139078,0.00219803,89402.0,89392.0,0.4727596]
[1763574139284,0.36299803,89402.0,89392.0,0.3608]
[1763574139665,0.36299803,89402.0,89393.0,0.1119586]
[1763574139871,0.08185,89395.0,89394.0,0.00219803]
[1763574140072,0.08258267,89395.0,89394.0,0.00219803]
[1763574140478,0.00073267,89395.0,89394.0,0.08649803]
[1763574140683,0.001,89402.0,89401.0,0.1119486]
[1763574140873,0.00173267,89402.0,89401.0,0.55924663]
[1763574141070,0.00173267,89402.0,89401.0,0.44729803]
[1763574141375,0.3608,89410.0,89405.0,0.0843]
[1763574141577,0.3608,89410.0,89409.0,0.0843]
[1763574141777,0.3608,89410.0,89409.0,0.08649803]
[1763574141976,0.3608,89428.0,89409.0,0.36299803]
[1763574142184,0.00066277,89427.0,89426.0,0.04004]
[1763574142482,0.00066277,89427.0,89426.0,0.08649803]
[1763574142676,0.3608,89444.0,89434.0,0.1119061]
[1763574142875,0.00066277,89443.0,89442.0,0.04004]
[1763574143182,0.08251277,89443.0,89442.0,0.00219803]
[1763574143480,0.08185,89435.0,89426.0,0.10964]
[1763574143784,0.00066277,89434.0,89430.0,0.00219803]
[1763574143980,0.00066277,89434.0,89420.0,0.3608]
[1763574143981,0.03817,89421.0,89420.0,0.3608]
[1763574144181,0.03817,89419.0,89413.0,0.3608]
[1763574144379,0.03883277,89419.0,89418.0,0.00236578]
[1763574144774,0.44331277,89419.0,89418.0,0.00236578]
[1763574144980,0.44331277,89419.0,89400.0,0.21193076]
[1763574145180,0.44331277,89419.0,89404.0,0.1119441]
[1763574145379,0.07273,89406.0,89405.0,0.00219803]
[1763574145579,0.07339277,89406.0,89405.0,0.00219803]
[1763574146387,0.00066277,89406.0,89405.0,0.18766163]
[1763574146985,0.00066277,89406.0,89405.0,0.00219803]
[1763574147579,0.00016669,89414.0,89413.0,0.03724]
[1763574147781,0.00016669,89414.0,89413.0,0.03943803]
[1763574147984,0.00082946,89414.0,89413.0,0.03943803]
[1763574148183,0.00016669,89414.0,89413.0,0.07571803]
[1763574148383,0.3608,89438.0,89415.0,0.1119304]
[1763574148575,0.00066277,89437.0,89428.0,0.21193076]
[1763574148778,0.00066277,89437.0,89436.0,0.00219803]
[1763574149176,0.00066277,89437.0,89436.0,0.07571803]
[1763574149377,0.00066277,89437.0,89436.0,0.00219803]
[1763574149691,0.00066277,89437.0,89428.0,0.00016775]
[1763574149692,0.07273,89429.0,89428.0,0.00016775]
[1763574149884,0.07339277,89429.0,89428.0,0.00016775]
[1763574150079,0.07339277,89429.0,89428.0,0.00236578]
[1763574150391,0.43419277,89429.0,89428.0,0.00236578]
[1763574152091,0.43419277,89429.0,89428.0,0.00016775]
[1763574152477,0.36146277,89429.0,89414.0,0.3608]
[1763574152677,0.36146277,89429.0,89414.0,0.36299803]
[1763574152886,0.36146277,89429.0,89414.0,0.47493033]
[1763574153278,0.36146277,89429.0,89420.0,0.1119245]
[1763574153483,0.36146277,89429.0,89428.0,0.00219803]
[1763574154093,0.43359277,89429.0,89428.0,0.00219803]
[1763574154280,0.43359277,89429.0,89419.0,0.21193076]
[1763574154482,0.43359277,89429.0,89428.0,0.11411283]
[1763574154884,0.36146277,89429.0,89428.0,0.11411283]
[1763574155084,0.35773052,89438.0,89437.0,0.1119035]
[1763574155285,0.35773052,89438.0,89437.0,0.00219803]
[1763574155688,0.35881614,89438.0,89437.0,0.00219803]
[1763574155887,0.00108562,89438.0,89437.0,0.00219803]
[1763574156387,0.0736619,89438.0,89437.0,0.00219803]
[1763574157484,0.07213,89432.0,89416.0,0.00016775]
[1763574157679,0.07213,89418.0,89417.0,0.00219803]
[1763574158293,0.0736619,89418.0,89417.0,0.00219803]
[1763574158582,0.07213,89417.0,89416.0,0.00016775]
[1763574158989,0.07213,89417.0,89416.0,0.00236578]
[1763574159183,0.0736619,89417.0,89416.0,0.00236578]
[1763574159695,0.0015319,89417.0,89416.0,0.00236578]
[1763574160085,0.0736619,89417.0,89416.0,0.00236578]
[1763574161184,0.0015319,89417.0,89416.0,0.07317578]
[1763574161388,0.05971667,89453.0,89416.0,0.07317578]
[1763574161389,0.3608,89447.0,89436.0,0.07081]
[1763574161685,0.36907738,89457.0,89445.0,0.00219803]
[1763574161686,0.3608,89448.0,89445.0,0.00219803]
[1763574161891,0.00827738,89457.0,89445.0,0.03685803]
[1763574162296,0.00827738,89457.0,89445.0,0.00219803]
[1763574162297,0.3608,89453.0,89445.0,0.00219803]
[1763574162488,0.00827738,89457.0,89454.0,0.1118798]
[1763574162688,0.00827738,89457.0,89456.0,0.03685803]
[1763574162896,0.00827738,89457.0,89456.0,0.00219803]
[1763574163293,0.00827738,89457.0,89456.0,0.39765803]
[1763574163495,0.00827738,89457.0,89456.0,0.07300803]
[1763574164697,0.3608,89483.0,89482.0,0.1826573]
[1763574164891,0.05971667,89495.0,89482.0,0.1826573]
[1763574164892,0.03981111,89517.0,89494.0,0.03466]
[1763574165095,0.02574094,89516.0,89500.0,0.21193076]
[1763574165290,0.04009036,89526.0,89502.0,0.1118218]
[1763574165291,0.04984824,89525.0,89502.0,0.1118218]
[1763574165500,0.07213,89511.0,89510.0,0.21193076]
[1763574165692,0.07213,89511.0,89510.0,0.00219803]
[1763574165895,0.03627,89511.0,89510.0,0.00219803]
[1763574166104,0.00027925,89526.0,89510.0,0.00219803]
[1763574166302,0.00027925,89526.0,89510.0,0.21412879]
[1763574166303,0.3608,89514.0,89510.0,0.21412879]
[1763574166491,0.3608,89525.0,89510.0,0.21412879]
[1763574167396,0.3608,89525.0,89524.0,0.03466]
[1763574167594,0.00027925,89526.0,89525.0,0.1117935]
[1763574167799,0.00027925,89526.0,89525.0,0.18480153]
[1763574167998,0.00027925,89526.0,89525.0,0.07300803]
[1763574168202,0.00027925,89526.0,89525.0,0.00219803]
[1763574168402,0.00027925,89526.0,89525.0,0.07300803]
[1763574168804,0.3608,89542.0,89525.0,0.36299803]
[1763574169001,0.3608,89542.0,89532.0,0.21193076]
[1763574169190,0.3608,89552.0,89541.0,0.00219803]
[1763574169396,0.3608,89555.0,89542.0,0.21193076]
[1763574169602,0.05971667,89591.0,89538.0,0.00016755]
[1763574169603,0.03981111,89588.0,89556.0,0.07081]
[1763574169799,0.10948,89590.0,89557.0,0.00219803]
[1763574169800,0.07213,89558.0,89557.0,0.00219803]
[1763574170103,0.07213,89541.0,89540.0,0.21193076]
[1763574170400,0.07380274,89541.0,89540.0,0.00219803]
[1763574170791,0.00167274,89541.0,89531.0,0.21193076]
[1763574170996,0.00167274,89541.0,89510.0,0.21193076]
[1763574170997,0.03627,89521.0,89510.0,0.21193076]
[1763574171299,0.03627,89521.0,89511.0,0.21193076]
[1763574171499,0.03627,89521.0,89520.0,0.00052529]
[1763574171695,0.07380274,89521.0,89520.0,0.00052529]
[1763574171896,0.07380274,89521.0,89520.0,0.00125796]
[1763574172201,0.00167274,89521.0,89520.0,0.00125796]
[1763574172699,0.07380274,89521.0,89520.0,0.00125796]
[1763574172897,0.07213,89513.0,89512.0,0.00016755]
[1763574173098,0.07380274,89513.0,89460.0,0.2120689]
[1763574173298,0.07213,89481.0,89480.0,0.00125796]
[1763574173502,0.07380274,89481.0,89480.0,0.00125796]
[1763574173801,0.03794274,89481.0,89480.0,0.00125796]
[1763574174102,0.00167274,89481.0,89480.0,0.00125796]
[1763574174903,0.3608,89483.0,89481.0,0.1118485]
[1763574175201,0.00016755,89489.0,89488.0,0.07206796]
[1763574175402,0.00184029,89489.0,89488.0,0.00125796]
[1763574175602,0.07397029,89489.0,89478.0,0.3608]
[1763574175902,0.03627,89480.0,89479.0,0.00125796]
[1763574176199,0.00167274,89480.0,89479.0,0.00125796]
[1763574176797,0.00167274,89480.0,89479.0,0.07206796]
[1763574177202,0.00016755,89489.0,89488.0,0.1118398]
[1763574177504,0.00184029,89489.0,89488.0,0.14775776]
[1763574177800,0.00184029,89489.0,89488.0,0.18390776]
[1763574177991,0.00184029,89489.0,89488.0,0.00125796]
[1763574178395,0.00184029,89489.0,89488.0,0.11309776]
[1763574178605,0.07397029,89489.0,89488.0,0.00125796]
[1763574179002,0.00184029,89489.0,89488.0,0.00125796]
[1763574179203,0.00184029,89489.0,89488.0,0.07306796]
[1763574179899,0.00184029,89489.0,89488.0,0.00225796]
[1763574180294,0.00016755,89489.0,89488.0,0.07306796]
[1763574180503,0.3608,89499.0,89488.0,0.07206796]
[1763574180707,0.3608,89516.0,89511.0,0.11050442]
[1763574180896,0.00167274,89515.0,89506.0,0.32374726]
[1763574181102,0.00167274,89515.0,89514.0,0.07206796]
[1763574181407,0.00167274,89515.0,89514.0,0.00125796]
[1763574181706,0.07380274,89515.0,89514.0,0.00125796]
[1763574181906,0.07023274,89515.0,89514.0,0.00125796]
[1763574182807,0.00016689,89523.0,89519.0,0.1118003]
[1763574183003,0.00016689,89523.0,89522.0,0.00125796]
[1763574183198,0.07039963,89523.0,89522.0,0.00125796]
[1763574183404,0.06856,89507.0,89506.0,0.00016755]
[1763574183607,0.00167274,89507.0,89506.0,0.00142551]
[1763574185011,0.07023274,89507.0,89506.0,0.00142551]
[1763574185208,0.07023274,89507.0,89506.0,0.00016755]
[1763574185409,0.07023274,89507.0,89506.0,0.00142551]
[1763574185607,0.03442274,89507.0,89506.0,0.00142551]
[1763574185909,0.00167274,89507.0,89506.0,0.11324281]
[1763574186098,0.00167274,89507.0,89506.0,0.00142551]
[1763574186698,0.00167274,89507.0,89506.0,0.03301551]
[1763574187106,0.00016689,89523.0,89522.0,0.1433873]
[1763574187306,0.3608,89537.0,89536.0,0.1784198]
[1763574187511,0.10944,89579.0,89541.0,0.11075087]
[1763574187812,0.00167274,89559.0,89550.0,0.26496799]
[1763574188004,0.00167274,89559.0,89551.0,0.00125796]
[1763574188196,0.00167274,89559.0,89556.0,0.1117544]
[1763574188398,0.00167274,89559.0,89558.0,0.03284796]
[1763574188710,0.00167274,89559.0,89558.0,0.06789796]
[1763574189007,0.07023274,89559.0,89558.0,0.00125796]
[1763574189209,0.34673609,89597.0,89558.0,0.06789796]
[1763574189406,0.34673609,89597.0,89560.0,0.02277]
[1763574189706,0.03981111,89613.0,89560.0,0.02277]
[1763574189707,0.02613906,89596.0,89595.0,0.03159]
[1763574189909,0.07023274,89596.0,89595.0,0.00125796]
[1763574190217,0.00167274,89596.0,89595.0,0.00125796]
[1763574190910,0.07023274,89596.0,89595.0,0.00125796]
[1763574192017,0.06856,89588.0,89587.0,0.00016745]
[1763574192197,0.06856,89588.0,89587.0,0.00142541]
[1763574192198,0.07023274,89588.0,89587.0,0.00142541]
[1763574192501,0.01137,89620.0,89587.0,0.06806541]
[1763574192702,0.00167274,89605.0,89587.0,0.00142541]
[1763574193308,0.00167274,89605.0,89590.0,0.26496799]
[1763574193502,0.07023274,89605.0,89604.0,0.00125796]
[1763574194104,0.07023274,89605.0,89587.0,0.00016745]
[1763574194309,0.07023274,89605.0,89604.0,0.00125796]
[1763574194909,0.06856,89588.0,89587.0,0.00016745]
[1763574195110,0.07023274,89588.0,89587.0,0.00016745]
[1763574195305,0.07023274,89588.0,89587.0,0.00142541]
[1763574195499,0.0715901,89588.0,89587.0,0.00142541]
[1763574195903,0.07189823,89588.0,89587.0,0.00142541]
[1763574196104,0.07189823,89588.0,89530.0,0.05991069]
[1763574196105,0.07189823,89588.0,89531.0,0.05991069]
[1763574196312,0.00197313,89574.0,89561.0,0.00125796]
[1763574196613,0.00167274,89573.0,89561.0,0.00125796]
[1763574196914,0.00226225,89568.0,89561.0,0.00125796]
[1763574197121,0.00167274,89567.0,89561.0,0.00125796]
[1763574197416,0.00226225,89568.0,89567.0,0.1783812]
[1763574197601,0.01137,89620.0,89573.0,0.1117329]
[1763574197802,0.00167274,89605.0,89599.0,0.111701]
[1763574198007,0.00167274,89605.0,89571.0,0.1117354]
[1763574198008,0.00167274,89605.0,89604.0,0.00125796]
[1763574198517,0.00167274,89605.0,89604.0,0.06789796]
[1763574198709,0.10932,89635.0,89604.0,0.01746796]
[1763574198908,0.7661211,89634.0,89604.0,0.00125796]
[1763574199106,0.06856,89605.0,89604.0,0.00125796]
[1763574199318,0.06856,89597.0,89596.0,0.00016745]
[1763574199505,0.07023274,89597.0,89596.0,0.00142541]
[1763574200014,0.07023274,89597.0,89596.0,0.06806541]
[1763574200015,0.00167274,89597.0,89596.0,0.06806541]
[1763574200308,0.00167274,89597.0,89596.0,0.00142541]
[1763574200309,0.07023274,89597.0,89596.0,0.00142541]
[1763574200918,0.00167274,89597.0,89596.0,0.00142541]
[1763574201307,0.02274,89640.0,89600.0,0.02277]
[1763574201505,0.02274,89640.0,89611.0,0.1116852]
[1763574201708,0.02274,89640.0,89617.0,0.00016745]
[1763574201709,0.03275,89618.0,89617.0,0.00016745]
[1763574201916,0.03275,89618.0,89617.0,0.00236548]
[1763574202217,0.06856,89618.0,89598.0,0.1117014]
[1763574202514,0.06856,89618.0,89606.0,0.111692]
[1763574202818,0.06856,89618.0,89601.0,0.00219803]
[1763574202819,0.06856,89618.0,89617.0,0.00219803]
[1763574203111,0.00016713,89626.0,89623.0,0.1116713]
[1763574203416,0.03275,89625.0,89624.0,0.00219803]
[1763574203615,0.39355,89625.0,89624.0,0.00219803]
[1763574203812,0.39355,89625.0,89609.0,0.00016736]
[1763574203813,0.03275,89610.0,89609.0,0.00016736]
[1763574204012,0.3608,89625.0,89609.0,0.00016736]
[1763574204013,0.3608,89615.0,89610.0,0.1116875]
[1763574204219,0.3608,89615.0,89614.0,0.11388063]
[1763574204405,0.3608,89625.0,89617.0,0.1116778]
[1763574204609,0.03275,89618.0,89617.0,0.00219803]
[1763574205218,0.3608,89625.0,89624.0,0.1116701]
[1763574205419,0.36183666,89625.0,89624.0,0.11386813]
[1763574205722,0.36183666,89625.0,89624.0,0.00219803]
[1763574205916,0.42258633,89625.0,89624.0,0.00219803]
[1763574206118,0.06062,89610.0,89609.0,0.00016736]
[1763574206418,0.001296,89610.0,89609.0,0.00236539]
[1763574206719,0.03079595,89610.0,89609.0,0.00236539]
[1763574206919,0.06062,89588.0,89587.0,0.3608]
[1763574207122,0.06214863,89588.0,89570.0,0.26496799]
[1763574207424,0.06214863,89588.0,89571.0,0.00219803]
[1763574207629,0.06062,89572.0,89571.0,0.00219803]
[1763574207824,0.06062,89572.0,89561.0,0.1117484]
[1763574208117,0.06062,89572.0,89571.0,0.0006694]
[1763574208319,0.00152863,89572.0,89571.0,0.0006694]
[1763574208514,0.06214863,89572.0,89571.0,0.0006694]
[1763574210220,0.00016745,89580.0,89576.0,0.1117298]
[1763574210517,0.00152863,89579.0,89570.0,0.3608]
[1763574210719,0.3608,89575.0,89571.0,0.00140207]
[1763574211015,0.00016745,89580.0,89571.0,0.00140207]
[1763574211016,0.00152863,89572.0,89571.0,0.00140207]
[1763574211417,0.03089863,89572.0,89571.0,0.00140207]
[1763574212116,0.00152863,89572.0,89571.0,0.00140207]
[1763574212523,0.00152863,89572.0,89571.0,0.06207207]
[1763574212818,0.00305809,89572.0,89571.0,0.06207207]
[1763574213716,0.00305809,89572.0,89571.0,0.00140207]
[1763574214109,0.06449809,89572.0,89571.0,0.00140207]
[1763574214328,0.00305809,89572.0,89571.0,0.00140207]
[1763574214514,0.00305809,89572.0,89571.0,0.06207207]
[1763574215716,0.00152946,89572.0,89571.0,0.06207207]
[1763574216220,0.00305809,89572.0,89571.0,0.06207207]
[1763574216422,0.00305809,89572.0,89571.0,0.00140207]
[1763574216623,0.03378809,89572.0,89571.0,0.00140207]
[1763574217223,0.06144,89564.0,89563.0,0.00016745]
[1763574217524,0.42376863,89564.0,89542.0,0.3608]
[1763574217722,0.00152946,89553.0,89542.0,0.36220207]
[1763574217931,0.42376863,89543.0,89542.0,0.00140207]
[1763574218127,0.42376863,89543.0,89526.0,0.1117916]
[1763574218326,0.3608,89530.0,89528.0,0.1117891]
[1763574218623,0.00152863,89530.0,89529.0,0.00140207]
[1763574218832,0.03378809,89530.0,89529.0,0.00140207]
[1763574219020,0.06449809,89530.0,89529.0,0.00140207]
[1763574219217,0.06449809,89530.0,89520.0,0.00016745]
[1763574219218,0.06144,89525.0,89520.0,0.00016745]
[1763574219423,0.42376863,89525.0,89524.0,0.00148695]
[1763574219827,0.42376863,89525.0,89524.0,8.488e-05]
[1763574219828,0.42529809,89525.0,89524.0,8.488e-05]
[1763574220524,0.06296863,89500.0,89499.0,0.00140207]
[1763574220918,0.06458381,89500.0,89499.0,0.00140207]
[1763574221419,0.06458381,89500.0,89499.0,0.00240207]
[1763574222526,0.00314381,89500.0,89499.0,0.06307207]
[1763574222827,0.06458381,89500.0,89499.0,0.00240207]
[1763574223025,0.00314381,89500.0,89499.0,0.00240207]
[1763574223526,0.42538381,89500.0,89499.0,0.00240207]
[1763574224429,0.42538381,89500.0,89499.0,0.00140207]
[1763574225326,0.06144,89492.0,89491.0,0.00016755]
[1763574225534,0.06144,89492.0,89452.0,0.1118846]
[1763574225535,0.06144,89488.0,89470.0,0.62576799]
[1763574225722,0.00152863,89487.0,89483.0,0.1118456]
[1763574225929,0.03225946,89485.0,89484.0,0.00140207]
[1763574226131,0.00305809,89485.0,89484.0,0.00140207]
[1763574226338,0.06449809,89485.0,89484.0,0.00140207]
[1763574227328,0.06449809,89485.0,89476.0,0.00016755]
[1763574227329,0.06144,89477.0,89476.0,0.00016755]
[1763574227526,0.06296863,89477.0,89476.0,0.00016755]
[1763574227923,0.06449809,89477.0,89476.0,0.00016755]
[1763574228426,0.06144,89469.0,89468.0,0.3608]
[1763574228628,0.06296863,89469.0,89468.0,0.3608]
[1763574228831,0.06449809,89469.0,89468.0,0.3608]
[1763574229036,0.06144,89462.0,89461.0,0.00011155]
[1763574229340,0.06296863,89462.0,89461.0,0.00151362]
[1763574229524,0.06196863,89462.0,89461.0,0.00151362]
[1763574229922,0.06349809,89462.0,89461.0,0.00151362]
[1763574230122,0.00305809,89462.0,89461.0,0.06218362]
[1763574230331,0.00305809,89462.0,89461.0,0.42398362]
[1763574231035,0.06449809,89462.0,89461.0,0.36331362]
[1763574231228,0.00152946,89462.0,89461.0,0.42398362]
[1763574232029,0.00305809,89462.0,89461.0,0.42398362]
[1763574232830,0.00305809,89462.0,89461.0,0.42298362]
[1763574234132,0.00305809,89462.0,89461.0,0.36231362]
[1763574234333,0.03378809,89462.0,89461.0,0.36231362]
[1763574234527,0.06449809,89462.0,89461.0,0.36231362]
[1763574237634,0.06449809,89462.0,89461.0,0.00151362]
[1763574238429,0.42529809,89462.0,89461.0,0.00011155]
[1763574238835,0.06144,89454.0,89453.0,0.0001122]
[1763574239139,0.06296863,89454.0,89453.0,0.0001122]
[1763574239333,0.06296863,89454.0,89453.0,0.03250427]
[1763574239334,0.00152863,89454.0,89453.0,0.03250427]
[1763574239932,0.06296863,89454.0,89453.0,0.00251427]
[1763574240141,0.42542473,89454.0,89453.0,0.0011122]
[1763574240631,0.42542473,89454.0,89434.0,0.3608]
[1763574240835,0.42542473,89454.0,89438.0,0.1119012]
[1763574240836,0.03073,89439.0,89438.0,0.1119012]
[1763574241040,0.00305809,89439.0,89438.0,0.17397327]
[1763574241428,0.06449809,89439.0,89438.0,0.00140207]
[1763574241639,0.00152946,89439.0,89438.0,0.06207207]
[1763574241836,0.00152946,89439.0,89420.0,0.26496799]
[1763574241837,0.05767,89436.0,89420.0,0.26496799]
[1763574242135,0.3608,89441.0,89421.0,0.00140207]
[1763574242136,0.05767,89422.0,89421.0,0.00140207]
[1763574242435,0.00166899,89422.0,89421.0,0.53340577]
[1763574242632,0.00014036,89422.0,89421.0,0.53340577]
[1763574243135,0.01801,89460.0,89421.0,0.53076207]
[1763574243338,0.3608,89461.0,89446.0,0.05928]
[1763574243339,0.00169628,89447.0,89446.0,0.05928]
[1763574243535,0.00169628,89447.0,89446.0,0.06068207]
[1763574243733,0.05936628,89447.0,89446.0,0.00140207]
[1763574244236,0.05942319,89447.0,89446.0,0.00140207]
[1763574244536,0.05767,89422.0,89411.0,0.3608]
[1763574244743,0.05986803,89417.0,89414.0,0.1119313]
[1763574244932,0.05986803,89417.0,89411.0,0.3608]
[1763574245127,0.05992494,89417.0,89411.0,0.3608]
[1763574245540,0.05992494,89417.0,89395.0,0.10936]
[1763574245738,0.05992494,89417.0,89393.0,0.3608]